bitfinex/quotes_SOLUSD_20250316
["timestamp","ask_amount","ask_price","bid_price","bid_amount"]
[1742113263086,0.03,134.39,134.38,16.73897447]
[1742113263292,0.03,134.39,134.38,24.18047447]
[1742113267673,0.03,134.39,134.38,85.08611915]
[1742113267873,0.03,134.39,134.38,24.18047447]
[1742113270088,0.03,134.39,134.38,85.08611915]
[1742113270780,0.03,134.39,134.38,24.18047447]
[1742113273095,0.03,134.39,134.38,22.66797447]
[1742113279017,0.03,134.39,134.38,15.22647447]
[1742113279304,0.03,134.39,134.38,22.66797447]
[1742113280316,0.03,134.39,134.38,15.22647447]
[1742113281188,0.03,134.39,134.38,6.33e-05]
[1742113282407,20.03,134.39,134.38,6.33e-05]
[1742113286614,0.03,134.39,134.38,6.33e-05]
[1742113286813,0.03,134.39,134.38,15.22647447]
[1742113289614,0.03,134.39,134.38,22.66797447]
[1742113293513,0.03,134.39,134.38,83.57361915]
[1742113293884,0.03,134.39,134.38,22.66797447]
[1742113298214,0.03,134.4,134.39,18.933972]
[1742113298421,82.2,134.47,134.39,34.16038317]
[1742113298733,20.0,134.46,134.45,15.22641117]
[1742113298897,20.0,134.46,134.44,15.22641117]
[1742113299442,6.52308149,134.46,134.44,15.22641117]
[1742113299598,210.2632,134.48,134.44,15.22641117]
[1742113299803,210.2632,134.48,134.44,22.66451117]
[1742113300005,13.4632,134.48,134.44,22.66451117]
[1742113301507,13.4632,134.48,134.44,15.22641117]
[1742113302130,13.4632,134.48,134.44,22.66441117]
[1742113302428,7.4655,134.49,134.45,15.22641117]
[1742113302630,7.4655,134.49,134.46,15.22641117]
[1742113302807,0.03,134.49,134.47,15.22641117]
[1742113303015,0.03,134.49,134.46,15.22641117]
[1742113303754,0.03,134.49,134.47,15.22641117]
[1742113304830,0.03,134.49,134.46,15.22641117]
[1742113307130,0.03,134.49,134.48,15.22641117]
[1742113309113,0.03,134.49,134.48,22.66241117]
[1742113310036,0.03,134.51,134.49,0.587385]
[1742113310247,0.03,134.51,134.5,15.22641117]
[1742113312531,0.03,134.51,134.5,22.66131117]
[1742113314747,0.03,134.51,134.5,15.22641117]
[1742113316958,0.03,134.51,134.5,22.66131117]
[1742113317124,0.03,134.51,134.5,15.22641117]
[1742113317943,0.03,134.51,134.5,22.66131117]
[1742113319142,0.03,134.51,134.5,15.22641117]
[1742113320745,0.03,134.51,134.49,0.587385]
[1742113322769,7.4643,134.51,134.49,0.587385]
[1742113323137,22.69071117,134.51,134.49,0.587385]
[1742113324325,15.22641117,134.5,134.49,0.587385]
[1742113324823,15.25641117,134.51,134.49,0.587385]
[1742113326955,7.4349,134.5,134.49,0.587385]
[1742113327649,22.66131117,134.5,134.49,0.587385]
[1742113333160,22.66131117,134.5,134.49,0.650385]
[1742113333556,22.66131117,134.5,134.49,0.063]
[1742113336459,7.4349,134.5,134.49,0.063]
[1742113339359,20.0,134.5,134.49,0.063]
[1742113339750,0.03,134.51,134.49,0.063]
[1742113341553,0.03,134.51,134.5,15.22641117]
[1742113342946,0.03,134.51,134.49,15.28941117]
[1742113347969,0.03,134.51,134.49,22.72471117]
[1742113348979,0.03,134.51,134.5,15.22641117]
[1742113350266,0.03,134.51,134.5,22.66131117]
[1742113350770,0.03,134.51,134.5,15.22641117]
[1742113351168,0.03,134.51,134.49,15.28941117]
[1742113351479,0.03,134.51,134.49,0.063]
[1742113352568,7.4643,134.51,134.49,0.063]
[1742113353282,22.69071117,134.51,134.49,0.063]
[1742113353480,0.03,134.51,134.49,0.063]
[1742113354870,0.03,134.51,134.49,15.28941117]
[1742113356658,0.03,134.51,134.49,22.72461117]
[1742113361381,0.03,134.51,134.49,7.4982]
[1742113362573,0.03,134.51,134.49,0.063]
[1742113364076,0.03,134.51,134.48,15.22641117]
[1742113365085,0.03,134.51,134.46,16.31691117]
[1742113365086,0.03,134.51,134.46,15.22641117]
[1742113365464,0.03,134.51,134.47,15.22641117]
[1742113366074,0.03,134.51,134.48,15.22641117]
[1742113366371,0.03,134.51,134.47,15.22641117]
[1742113367187,0.03,134.51,134.47,22.66251117]
[1742113367685,0.03,134.51,134.48,15.22641117]
[1742113368386,0.03,134.51,134.48,22.66231117]
[1742113370784,0.03,134.51,134.47,0.063]
[1742113370785,0.03,134.51,134.49,15.22641117]
[1742113373226,0.03,134.51,134.49,22.66141117]
[1742113376172,0.03,134.51,134.48,15.22641117]
[1742113376585,0.03,134.51,134.48,22.66231117]
[1742113379692,0.03,134.51,134.49,15.22641117]
[1742113380989,0.03,134.51,134.5,7.4349]
[1742113385807,0.03,134.51,134.49,22.66171117]
[1742113388397,0.03,134.51,134.5,15.22641117]
[1742113390001,0.03,134.51,134.5,22.66131117]
[1742113391493,0.03,134.51,134.5,15.22641117]
[1742113391696,0.03,134.51,134.5,22.66131117]
[1742113392599,0.03,134.51,134.5,15.22641117]
[1742113393200,0.03,134.51,134.5,22.66131117]
[1742113395806,0.03,134.51,134.5,15.22641117]
[1742113404512,0.03,134.51,134.49,22.66161117]
[1742113404684,15.25641117,134.51,134.47,0.063]
[1742113405625,22.69131117,134.51,134.47,0.063]
[1742113407306,15.22641117,134.49,134.47,0.063]
[1742113407508,15.22641117,134.48,134.47,0.063]
[1742113407698,7.436,134.48,134.47,0.063]
[1742113408102,22.66201117,134.49,134.47,0.063]
[1742113408290,7.4356,134.49,134.47,0.063]
[1742113408711,22.66151117,134.5,134.47,0.063]
[1742113413214,15.22641117,134.49,134.47,0.063]
[1742113413803,15.22641117,134.48,134.47,0.063]
[1742113414003,22.66241117,134.48,134.47,0.063]
[1742113414206,30.81191117,134.48,134.47,0.063]
[1742113414420,23.37591117,134.48,134.47,0.063]
[1742113416005,30.81191117,134.48,134.47,0.063]
[1742113416207,23.37591117,134.48,134.47,0.063]
[1742113419619,15.22641117,134.49,134.47,0.063]
[1742113422231,22.66191117,134.49,134.47,0.063]
[1742113422418,15.22641117,134.48,134.47,0.063]
[1742113425645,41.31206003,134.48,134.47,0.063]
[1742113435620,41.59638317,134.48,134.47,0.063]
[1742113439553,41.62638317,134.48,134.47,0.063]
[1742113453184,33.90606003,134.48,134.47,0.063]
[1742113457688,41.34206003,134.48,134.47,0.063]
[1742113459191,41.62638317,134.48,134.47,0.063]
[1742113461895,26.11564886,134.48,134.47,0.063]
[1742113462194,41.34206003,134.48,134.47,0.063]
[1742113463100,33.90606003,134.48,134.47,0.063]
[1742113465017,41.34206003,134.48,134.47,0.063]
[1742113466514,41.62638317,134.48,134.47,0.063]
[1742113482038,38.63995617,134.48,134.47,0.063]
[1742113483313,0.03,134.48,134.47,15.28941117]
[1742113483514,0.03,134.48,134.47,16.94311117]
[1742113485108,0.03,134.48,134.47,24.37971117]
[1742113491532,0.03,134.48,134.47,24.37971117]
[1742113501035,0.0001,134.48,134.47,24.37971117]
[1742113502823,0.0001,134.48,134.47,16.94311117]
[1742113503336,0.0001,134.48,134.47,0.063]
[1742113506834,0.0001,134.48,134.47,15.28941117]
[1742113509951,0.0001,134.48,134.47,0.063]
[1742113510326,0.0001,134.48,134.47,24.31911117]
[1742113510636,0.0001,134.48,134.47,30.88831117]
[1742113514657,0.0001,134.48,134.47,49.82228317]
[1742113514825,0.03,134.51,134.47,68.91378317]
[1742113515027,0.03,134.51,134.5,15.22641117]
[1742113516844,0.03,134.51,134.5,22.66131117]
[1742113521953,0.03,134.51,134.5,22.72431117]
[1742113527756,0.03,134.53,134.5,102.21725585]
[1742113527959,0.03,134.53,134.52,76.13205585]
[1742113528838,0.03,134.53,134.52,15.22641117]
[1742113529359,0.03,134.53,134.52,22.66021117]
[1742113536281,28.81512609,134.59,134.52,22.66021117]
[1742113536453,28.81512609,134.59,134.54,22.65901117]
[1742113537673,1.6375,134.61,134.57,15.22641117]
[1742113537873,1.6375,134.61,134.58,15.22641117]
[1742113538181,0.03,134.62,134.58,15.22641117]
[1742113538674,0.03,134.62,134.59,7.4299]
[1742113543366,0.03,134.62,134.6,15.22641117]
[1742113543578,0.03,134.62,134.61,7.4288]
[1742113544163,0.03,134.62,134.61,22.65521117]
[1742113544955,0.03,134.62,134.6,22.65551117]
[1742113545979,0.03,134.62,134.6,15.22641117]
[1742113546286,0.03,134.62,134.61,15.22641117]
[1742113548683,0.03,134.62,134.6,15.22641117]
[1742113549673,0.03,134.62,134.57,7.4305]
[1742113549979,0.03,134.62,134.59,15.22641117]
[1742113550682,7.4583,134.62,134.59,15.22641117]
[1742113551054,7.4583,134.62,134.58,15.22641117]
[1742113552884,15.22641117,134.6,134.52,62.44944468]
[1742113553071,15.22641117,134.57,134.52,22.66001117]
[1742113554181,22.65771117,134.57,134.52,22.66001117]
[1742113554385,15.22641117,134.57,134.52,22.66001117]
[1742113556585,15.22641117,134.57,134.53,15.22641117]
[1742113556988,31.25236157,134.62,134.56,15.22641117]
[1742113556989,0.03,134.62,134.56,15.22641117]
[1742113557277,0.03,134.62,134.59,15.22641117]
[1742113557484,15.25641117,134.62,134.58,15.22641117]
[1742113558394,0.03,134.62,134.58,22.65641117]
[1742113558581,35.25641117,134.62,134.58,7.43]
[1742113560195,20.03,134.62,134.58,7.43]
[1742113560679,20.03,134.62,134.58,22.65641117]
[1742113561083,15.22641117,134.6,134.55,22.65831117]
[1742113561295,7.866,134.61,134.55,7.4319]
[1742113561296,15.22641117,134.59,134.55,7.4319]
[1742113564622,15.22641117,134.6,134.55,7.4319]
[1742113566099,15.22641117,134.6,134.55,22.65831117]
[1742113568978,15.22641117,134.6,134.55,22.72131117]
[1742113569478,7.866,134.61,134.55,7.4949]
[1742113569479,15.22641117,134.59,134.55,7.4949]
[1742113570000,15.22641117,134.59,134.55,22.72131117]
[1742113581017,15.25641117,134.59,134.55,22.72131117]
[1742113595323,0.03,134.59,134.55,22.72131117]
[1742113595507,0.03,134.59,134.56,15.22641117]
[1742113596019,0.03,134.59,134.55,22.72131117]
[1742113611455,0.03,134.59,134.55,7.4949]
[1742113611634,0.03,134.59,134.55,0.063]
[1742113612660,0.03,134.59,134.55,7.4951]
[1742113616257,0.03,134.59,134.55,0.063]
[1742113616560,20.0,134.56,134.55,0.063]
[1742113617739,35.22641117,134.56,134.55,0.063]
[1742113618143,42.65801117,134.56,134.55,0.063]
[1742113634389,61.59198317,134.56,134.55,0.063]
[1742113635786,61.59198317,134.56,134.55,0.0001]
[1742113635977,69.87648317,134.56,134.55,0.0001]
[1742113636181,82.2,134.55,134.52,0.063]
[1742113636373,38.64964886,134.51,134.5,0.063]
[1742113636674,142.41606003,134.51,134.5,0.063]
[1742113636874,150.13468317,134.51,134.5,0.063]
[1742113637985,142.70038317,134.51,134.5,0.063]
[1742113641810,150.13468317,134.51,134.5,0.063]
[1742113645109,117.56857274,134.51,134.5,0.063]
[1742113645317,108.54,134.51,134.5,0.063]
[1742113647721,116.07606003,134.55,134.5,15.28941117]
[1742113647892,25.13181043,134.54,134.5,15.28941117]
[1742113648297,6.34,134.53,134.5,15.28941117]
[1742113648819,97.56857274,134.55,134.5,15.28941117]
[1742113649017,6.34,134.54,134.5,16.94271117]
[1742113649503,6.34,134.54,134.51,7.4343]
[1742113653227,6.34,134.54,134.52,15.22641117]
[1742113653925,0.03,134.56,134.53,15.22641117]
[1742113654829,0.03,134.56,134.54,7.4327]
[1742113655930,0.03,134.56,134.53,7.4331]
[1742113656929,34.0482216,134.56,134.51,22.66071117]
[1742113658441,41.4800216,134.56,134.51,22.66071117]
[1742113659134,34.0482216,134.56,134.51,22.66071117]
[1742113660107,18.82181043,134.56,134.51,22.66071117]
[1742113660609,18.82181043,134.56,134.52,15.22641117]
[1742113660907,18.82181043,134.56,134.52,22.65971117]
[1742113663133,0.03,134.56,134.53,15.22641117]
[1742113663835,20.0,134.55,134.54,7.4327]
[1742113667638,20.0,134.55,134.54,22.65911117]
[1742113668540,0.03,134.56,134.54,22.65911117]
[1742113668719,0.03,134.56,134.51,26.0192]
[1742113668921,0.03,134.56,134.53,15.22641117]
[1742113670942,0.03,134.56,134.54,7.4327]
[1742113674944,0.03,134.56,134.53,22.65961117]
[1742113675145,0.03,134.56,134.55,15.22641117]
[1742113675352,20.03,134.56,134.54,15.22641117]
[1742113675526,20.03,134.56,134.53,22.65961117]
[1742113675926,20.03,134.56,134.53,7.4332]
[1742113676349,20.03,134.56,134.53,22.65961117]
[1742113677138,20.03,134.56,134.54,15.22641117]
[1742113678252,20.03,134.56,134.55,15.22641117]
[1742113679047,20.03,134.56,134.55,22.65851117]
[1742113680241,20.03,134.56,134.55,7.4321]
[1742113680831,20.03,134.56,134.54,22.65881117]
[1742113681233,20.03,134.56,134.53,15.22641117]
[1742113682650,20.03,134.56,134.52,15.28941117]
[1742113683351,20.03,134.56,134.53,7.4332]
[1742113687457,20.03,134.56,134.54,15.22641117]
[1742113688639,20.03,134.56,134.53,22.65961117]
[1742113690467,20.03,134.56,134.52,15.28941117]
[1742113691655,20.03,134.56,134.53,15.22641117]
[1742113692555,20.03,134.56,134.55,7.4321]
[1742113692953,20.03,134.56,134.55,22.65851117]
[1742113695862,0.03,134.56,134.55,22.65851117]
[1742113702665,0.03,134.56,134.54,15.22641117]
[1742113702866,0.03,134.56,134.53,15.22641117]
[1742113703567,0.03,134.56,134.53,22.65941117]
[1742113704573,0.03,134.56,134.54,15.22641117]
[1742113704773,0.03,134.56,134.54,22.65901117]
[1742113705577,0.03,134.56,134.53,22.65941117]
[1742113707075,0.03,134.56,134.54,15.22641117]
[1742113709195,0.03,134.56,134.55,7.4321]
[1742113710089,0.03,134.56,134.55,22.65851117]
[1742113712172,0.03,134.56,134.54,22.65881117]
[1742113712681,0.03,134.56,134.53,22.65951117]
[1742113723807,0.03,134.56,134.52,15.28941117]
[1742113724386,0.03,134.56,134.53,15.22641117]
[1742113725716,0.03,134.56,134.53,22.65941117]
[1742113734795,0.03,134.56,134.53,15.22641117]
[1742113734998,0.03,134.56,134.53,22.65961117]
[1742113735394,0.03,134.56,134.53,7.4332]
[1742113736513,0.03,134.56,134.53,15.22641117]
[1742113741205,0.03,134.56,134.52,15.28941117]
[1742113743138,34.19038317,134.56,134.52,0.063]
[1742113743432,15.22641117,134.54,134.52,0.063]
[1742113745132,15.22641117,134.53,134.52,0.063]
[1742113745640,15.22641117,134.54,134.52,0.063]
[1742113747839,22.65961117,134.54,134.52,0.063]
[1742113756542,15.22641117,134.53,134.52,0.063]
[1742113757725,22.65961117,134.53,134.52,0.063]
[1742113759741,15.22641117,134.53,134.52,0.063]
[1742113762839,22.65961117,134.53,134.52,0.063]
[1742113773752,15.22641117,134.53,134.52,0.063]
[1742113773932,22.68931117,134.54,134.52,0.063]
[1742113774251,15.22641117,134.53,134.52,0.063]
[1742113774944,15.25641117,134.54,134.52,0.063]
[1742113779058,0.03,134.54,134.52,0.063]
[1742113786256,15.25641117,134.54,134.52,0.063]
[1742113786641,15.22641117,134.53,134.52,0.063]
[1742113787465,15.25641117,134.54,134.52,0.063]
[1742113788642,15.22641117,134.53,134.52,0.063]
[1742113788843,15.25641117,134.54,134.52,0.063]
[1742113795061,0.03,134.54,134.52,0.063]
[1742113795642,15.25641117,134.54,134.52,0.063]
[1742113796765,0.03,134.54,134.52,7.4968]
[1742113798658,0.03,134.54,134.53,15.22641117]
[1742113798859,0.0001,134.54,134.53,22.65961117]
[1742113799855,0.0001,134.54,134.53,43.15798317]
[1742113800873,0.0001,134.56,134.54,18.933972]
[1742113801049,0.0001,134.56,134.55,21.43061117]
[1742113801566,0.03,134.59,134.55,21.43061117]
[1742113801747,0.03,134.59,134.58,15.22641117]
[1742113802966,0.03,134.59,134.58,22.65691117]
[1742113803166,0.03,134.59,134.58,24.22131117]
[1742113803570,0.03,134.59,134.58,30.34202608]
[1742113803870,0.03,134.62,134.58,109.82397076]
[1742113804060,0.03,134.62,134.61,15.22641117]
[1742113805079,0.03,134.62,134.61,22.65521117]
[1742113806485,0.03,134.62,134.6,15.22641117]
[1742113806780,15.22641117,134.61,134.56,22.65801117]
[1742113807982,15.25641117,134.62,134.57,15.22641117]
[1742113809587,15.22641117,134.61,134.56,22.65801117]
[1742113810583,22.68471117,134.62,134.57,15.22641117]
[1742113810976,15.22641117,134.61,134.56,15.22641117]
[1742113811184,15.22641117,134.58,134.55,0.063]
[1742113811495,15.22641117,134.57,134.55,0.063]
[1742113811782,15.22641117,134.56,134.55,0.063]
[1742113811987,15.22641117,134.57,134.55,0.063]
[1742113812359,22.65781117,134.57,134.55,0.063]
[1742113812556,15.22641117,134.56,134.55,0.063]
[1742113813364,22.65781117,134.57,134.55,0.063]
[1742113815084,15.22641117,134.57,134.55,0.063]
[1742113817183,97.42641117,134.61,134.56,15.22641117]
[1742113817397,82.2,134.61,134.57,15.22641117]
[1742113817578,82.2,134.61,134.58,15.22641117]
[1742113817883,6.35,134.62,134.58,15.22641117]
[1742113818765,6.35,134.62,134.59,7.4299]
[1742113819871,0.03,134.62,134.59,22.65631117]
[1742113820074,0.03,134.62,134.6,15.22641117]
[1742113820467,0.03,134.62,134.59,22.65631117]
[1742113821290,0.03,134.62,134.59,7.4299]
[1742113821494,15.25641117,134.62,134.59,7.4299]
[1742113822496,15.25641117,134.62,134.58,7.4305]
[1742113822497,0.03,134.62,134.58,7.4305]
[1742113823471,0.03,134.62,134.58,22.65691117]
[1742113826081,0.03,134.62,134.59,15.22641117]
[1742113826899,0.03,134.62,134.61,15.22641117]
[1742113827779,0.0001,134.62,134.61,15.22641117]
[1742113827987,0.0001,134.62,134.61,22.65521117]
[1742113831197,0.0001,134.62,134.61,41.58918317]
[1742113832085,0.0001,134.62,134.61,22.65521117]
[1742113837510,0.0001,134.62,134.61,41.58918317]
[1742113838081,0.0001,134.63,134.61,41.4470216]
[1742113838316,0.0001,134.63,134.62,15.22641117]
[1742113840191,0.0001,134.63,134.62,22.65471117]
[1742113841986,0.0101,134.64,134.62,43.25078317]
[1742113842187,0.03,134.69,134.67,20.0]
[1742113842393,0.03,134.69,134.67,35.22641117]
[1742113843191,0.03,134.69,134.67,15.22641117]
[1742113844108,0.03,134.69,134.66,15.22641117]
[1742113844315,0.03,134.69,134.67,7.4255]
[1742113846311,0.03,134.69,134.66,7.4258]
[1742113846894,0.03,134.69,134.66,22.65221117]
[1742113847708,0.03,134.69,134.67,15.22641117]
[1742113848313,0.03,134.69,134.67,22.65191117]
[1742113850939,0.03,134.69,134.68,0.938326]
[1742113853642,0.03,134.69,134.68,8.363326]
[1742113853832,0.03,134.69,134.68,0.938326]
[1742113854836,0.03,134.69,134.68,8.363326]
[1742113855334,0.03,134.69,134.68,0.938326]
[1742113856937,0.03,134.69,134.66,7.4261]
[1742113857518,0.03,134.69,134.66,22.65251117]
[1742113858126,0.03,134.69,134.67,15.22641117]
[1742113858748,0.03,134.69,134.68,15.22641117]
[1742113859219,0.03,134.69,134.68,22.65141117]
[1742113860437,0.03,134.7,134.68,24.28191117]
[1742113860641,0.03,134.7,134.69,15.22641117]
[1742113861025,0.03,134.7,134.69,16.16466817]
[1742113861440,0.03,134.7,134.69,23.58906817]
[1742113861640,0.03,134.7,134.69,8.362657]
[1742113862831,0.03,134.7,134.69,7.4244]
[1742113864140,0.03,134.7,134.68,7.425]
[1742113864542,0.03,134.7,134.68,22.65141117]
[1742113865752,0.03,134.7,134.69,15.22641117]
[1742113867049,0.03,134.71,134.69,15.22641117]
[1742113867233,0.03,134.71,134.7,16.16459817]
[1742113867629,0.03,134.71,134.7,23.58849817]
[1742113868263,0.03,134.71,134.7,8.362087]
[1742113868431,0.03,134.71,134.7,23.58849817]
[1742113869252,0.03,134.71,134.7,22.65031117]
[1742113870350,0.03,134.72,134.7,83.55595585]
[1742113870555,0.03,134.72,134.71,15.22641117]
[1742113871753,0.03,134.72,134.71,22.64971117]
[1742113873859,0.03,134.72,134.71,7.4233]
[1742113875148,0.03,134.72,134.71,22.64971117]
[1742113875357,0.03,134.73,134.72,0.908048]
[1742113875858,0.03,134.73,134.72,16.13445917]
[1742113877153,0.03,134.73,134.72,23.55725917]
[1742113877449,0.03,134.73,134.72,41.58318317]
[1742113877652,0.03,134.76,134.73,18.933972]
[1742113877860,0.0001,134.76,134.75,34.16038317]
[1742113879140,0.0001,134.76,134.75,22.64751117]
[1742113880566,0.0001,134.76,134.75,41.58148317]
[1742113880762,0.0001,134.76,134.75,102.48712785]
[1742113881149,0.0001,134.76,134.75,41.58148317]
[1742113881659,0.03,134.77,134.76,0.907678]
[1742113881859,0.03,134.77,134.76,77.03973385]
[1742113882367,0.03,134.77,134.76,16.13408917]
[1742113883346,0.03,134.77,134.76,15.22641117]
[1742113883552,0.03,134.77,134.75,103.34731117]
[1742113884267,0.03,134.77,134.75,112.02560346]
[1742113885169,0.03,134.77,134.75,23.90470346]
[1742113885470,0.03,134.77,134.75,7.421]
[1742113885776,0.03,134.77,134.76,23.90470346]
[1742113886673,0.03,134.77,134.76,31.32520346]
[1742113887867,31.35220346,134.82,134.78,7.4194]
[1742113888578,0.03,134.82,134.78,31.32410346]
[1742113888760,0.03,134.82,134.79,23.90470346]
[1742113889160,0.03,134.82,134.8,23.90470346]
[1742113889362,0.03,134.82,134.79,23.90470346]
[1742113890084,0.03,134.82,134.8,7.4183]
[1742113890289,0.03,134.82,134.8,31.32300346]
[1742113891782,0.03,134.82,134.81,23.90470346]
[1742113893461,0.03,134.82,134.81,31.32250346]
[1742113894078,0.03,134.82,134.81,7.4178]
[1742113894685,0.03,134.84,134.82,0.847285]
[1742113896788,0.03,134.84,134.81,31.32250346]
[1742113896990,0.03,134.84,134.82,23.90470346]
[1742113897696,0.03,134.84,134.81,31.32250346]
[1742113900089,0.03,134.84,134.8,31.32280346]
[1742113900288,23.93470346,134.84,134.8,7.4181]
[1742113900481,23.90470346,134.83,134.78,31.32390346]
[1742113900678,23.90470346,134.83,134.78,7.4192]
[1742113900880,23.93470346,134.84,134.79,23.90470346]
[1742113901101,23.93470346,134.84,134.8,7.4183]
[1742113901275,31.35100346,134.84,134.79,31.32340346]
[1742113902677,31.35100346,134.84,134.78,23.90470346]
[1742113902881,23.90470346,134.83,134.78,23.90470346]
[1742113904313,15.29394288,134.82,134.77,22.77694288]
[1742113904484,23.04924288,134.82,134.77,7.483]
[1742113905100,30.46694288,134.82,134.77,15.35694288]
[1742113905480,7.7553,134.82,134.78,15.29394288]
[1742113905691,7.7553,134.82,134.77,0.063]
[1742113905892,20.0,134.82,134.8,15.29394288]
[1742113906098,0.03,134.84,134.8,15.29394288]
[1742113906398,0.03,134.84,134.79,15.29394288]
[1742113908302,0.03,134.84,134.8,22.71224288]
[1742113908601,0.03,134.84,134.82,15.29394288]
[1742113908899,0.03,134.84,134.81,15.29394288]
[1742113909694,0.03,134.84,134.82,7.4172]
[1742113910502,82.2,134.86,134.84,0.81716]
[1742113911078,97.49394288,134.86,134.84,0.81716]
[1742113912505,82.2,134.86,134.84,8.23326]
[1742113913005,82.2,134.86,134.84,7.4161]
[1742113914405,0.03,134.84,134.83,7.4164]
[1742113914700,0.03,134.84,134.82,7.417]
[1742113915385,0.03,134.84,134.82,22.71094288]
[1742113916584,0.03,134.84,134.83,15.29394288]
[1742113918008,0.03,134.84,134.82,22.71094288]
[1742113920609,0.03,134.84,134.81,15.29394288]
[1742113920793,0.03,134.84,134.8,22.71224288]
[1742113921613,0.03,134.84,134.81,15.29394288]
[1742113921793,0.03,134.84,134.82,7.4172]
[1742113921985,0.03,134.84,134.81,22.71144288]
[1742113922190,0.03,134.84,134.8,15.29394288]
[1742113922410,20.0,134.85,134.84,0.78716]
[1742113923312,27.4156,134.85,134.84,0.78716]
[1742113924011,20.0,134.85,134.84,0.78716]
[1742113924703,22.73854288,134.87,134.84,0.78716]
[1742113926201,34.22791488,134.85,134.84,0.78716]
[1742113926923,34.08575331,134.85,134.8,0.063]
[1742113927100,15.29394288,134.83,134.8,0.063]
[1742113927923,22.71114288,134.83,134.8,0.063]
[1742113928302,7.4172,134.83,134.8,0.063]
[1742113928901,7.4163,134.84,134.8,0.063]
[1742113929096,15.29394288,134.85,134.8,0.063]
[1742113929829,22.70974288,134.85,134.8,0.063]
[1742113930420,22.70974288,134.85,134.8,7.4813]
[1742113931221,22.70974288,134.85,134.83,0.787218]
[1742113933418,15.29394288,134.84,134.83,0.787218]
[1742113934714,35.83111488,134.84,134.83,0.787218]
[1742113935418,43.24721488,134.84,134.83,0.787218]
[1742113938223,43.27721488,134.84,134.83,0.787218]
[1742113938721,131.72601488,134.84,134.83,1.8e-05]
[1742113938919,110.7017864,134.84,134.83,1.8e-05]
[1742113939322,49.52601488,134.84,134.83,1.8e-05]
[1742113940110,111.2017864,134.84,134.83,1.8e-05]
[1742113940431,38.933972,134.81,134.8,0.063]
[1742113940737,54.22791488,134.81,134.8,0.063]
[1742113941622,61.64571488,134.81,134.8,0.063]
[1742113944908,62.14571488,134.81,134.8,0.063]
[1742113945110,61.64571488,134.81,134.8,0.063]
[1742113945429,20.0,134.78,134.77,0.063]
[1742113945635,40.54791488,134.78,134.77,0.063]
[1742113946443,47.96731488,134.78,134.77,0.063]
[1742113948340,20.0,134.74,134.72,0.063]
[1742113948830,15.29394288,134.73,134.72,0.063]
[1742113949043,40.54791488,134.73,134.72,0.063]
[1742113949351,41.04791488,134.73,134.72,0.063]
[1742113949643,48.47011488,134.73,134.72,0.063]
[1742113949849,47.97011488,134.73,134.72,0.063]
[1742113950546,41.65011488,134.73,134.72,0.063]
[1742113950847,47.97011488,134.73,134.72,0.063]
[1742113952927,15.29394288,134.73,134.72,0.063]
[1742113953132,15.29394288,134.74,134.72,0.063]
[1742113953443,20.0,134.73,134.72,0.063]
[1742113953635,22.71514288,134.75,134.72,0.063]
[1742113953821,20.0,134.73,134.72,0.063]
[1742113955421,35.29394288,134.73,134.72,0.063]
[1742113955728,42.71614288,134.73,134.72,0.063]
[1742113957514,35.29394288,134.73,134.72,0.063]
[1742113957719,20.0,134.73,134.72,0.063]
[1742113960337,27.4222,134.73,134.72,0.063]
[1742113960537,42.71614288,134.73,134.72,0.063]